[Event "Titled Tuesday Blitz August 23 Early 2022"]
[White "Andreikin, Dmitry"]
[Black "Le, Tuan Minh"]
[WhiteFideId "4158814"]
[BlackFideId "12401153"]
[WhiteElo "2736"]
[BlackElo "2530"]
[Result "1/2-1/2"]
[Round "07"]
[TimeControl "180+1"]
[Date "2022.08.23"]
[WhiteClock "0:00:17"]
[BlackClock "0:00:13"]

1. Nf3 {[%clk 0:03:00]}  d5 {[%clk 0:03:00]} 2. d4 {[%clk 0:03:00]}  Nf6 {[%clk 0:03:00]} 3. c4 {[%clk 0:03:00]}  c6 {[%clk 0:03:01]} 4. Qc2 {[%clk 0:02:58]}  dxc4 {[%clk 0:03:01]} 5. Qxc4 {[%clk 0:02:59]}  Bg4 {[%clk 0:03:01]} 6. Nc3 {[%clk 0:02:56]}  Nbd7 {[%clk 0:03:01]} 7. e4 {[%clk 0:02:57]}  e5 {[%clk 0:03:01]} 8. Nxe5 {[%clk 0:02:49]}  Nxe5 {[%clk 0:02:59]} 9. dxe5 {[%clk 0:02:50]}  Be6 {[%clk 0:02:58]} 10. Qe2 {[%clk 0:02:40]}  Ng4 {[%clk 0:02:51]} 11. Bf4 {[%clk 0:02:18]}  Bc5 {[%clk 0:02:51]} 12. Bg3 {[%clk 0:02:13]}  Qa5 {[%clk 0:01:55]} 13. O-O-O {[%clk 0:01:38]}  Bb4 {[%clk 0:01:49]} 14. Qc2 {[%clk 0:01:31]}  Nxe5 {[%clk 0:01:09]} 15. a3 {[%clk 0:01:30]}  Bxc3 {[%clk 0:00:56]} 16. Qxc3 {[%clk 0:01:31]}  Qxc3+ {[%clk 0:00:57]} 17. bxc3 {[%clk 0:01:31]}  f6 {[%clk 0:00:58]} 18. f4 {[%clk 0:01:28]}  Nc4 {[%clk 0:00:56]} 19. f5 {[%clk 0:01:22]}  Bf7 {[%clk 0:00:56]} 20. Bxc4 {[%clk 0:01:18]}  Bxc4 {[%clk 0:00:57]} 21. e5 {[%clk 0:01:16]}  fxe5 {[%clk 0:00:46]} 22. Bxe5 {[%clk 0:01:11]}  O-O {[%clk 0:00:46]} 23. g4 {[%clk 0:01:02]}  Rae8 {[%clk 0:00:46]} 24. Rhe1 {[%clk 0:01:01]}  Bd5 {[%clk 0:00:38]} 25. Bd6 {[%clk 0:00:53]}  Rxe1 {[%clk 0:00:33]} 26. Rxe1 {[%clk 0:00:54]}  Rd8 {[%clk 0:00:33]} 27. Bc7 {[%clk 0:00:48]}  Rd7 {[%clk 0:00:33]} 28. Bb8 {[%clk 0:00:48]}  b6 {[%clk 0:00:29]} 29. h3 {[%clk 0:00:44]}  Kf7 {[%clk 0:00:29]} 30. Be5 {[%clk 0:00:42]}  Re7 {[%clk 0:00:29]} 31. Re3 {[%clk 0:00:40]}  a5 {[%clk 0:00:16]} 32. Kd2 {[%clk 0:00:40]}  a4 {[%clk 0:00:17]} 33. h4 {[%clk 0:00:36]}  h6 {[%clk 0:00:17]} 34. g5 {[%clk 0:00:36]}  hxg5 {[%clk 0:00:18]} 35. hxg5 {[%clk 0:00:37]}  g6 {[%clk 0:00:19]} 36. f6 {[%clk 0:00:34]}  Rd7 {[%clk 0:00:19]} 37. Ke1 {[%clk 0:00:29]}  c5 {[%clk 0:00:14]} 38. Rh3 {[%clk 0:00:27]}  Ke6 {[%clk 0:00:15]} 39. Bf4 {[%clk 0:00:26]}  Kf5 {[%clk 0:00:15]} 40. Bd2 {[%clk 0:00:23]}  Bb3 {[%clk 0:00:15]} 41. Rf3+ {[%clk 0:00:18]}  Ke4 {[%clk 0:00:16]} 42. Re3+ {[%clk 0:00:18]}  Kf5 {[%clk 0:00:16]} 43. Re7 {[%clk 0:00:13]}  Rxe7+ {[%clk 0:00:14]} 44. fxe7 {[%clk 0:00:14]}  Bf7 {[%clk 0:00:15]} 45. Kf2 {[%clk 0:00:15]}  Ke6 {[%clk 0:00:15]} 46. Bf4 {[%clk 0:00:15]}  Kxe7 {[%clk 0:00:15]} 47. Bc7 {[%clk 0:00:16]}  b5 {[%clk 0:00:16]} 48. Ke3 {[%clk 0:00:16]}  Kd7 {[%clk 0:00:17]} 49. Be5 {[%clk 0:00:16]}  Ke6 {[%clk 0:00:17]} 50. Bf6 {[%clk 0:00:15]}  Kd5 {[%clk 0:00:17]} 51. Be7 {[%clk 0:00:15]}  Kc4 {[%clk 0:00:17]} 52. Kd2 {[%clk 0:00:16]}  Be6 {[%clk 0:00:16]} 53. Bf8 {[%clk 0:00:16]}  Bf5 {[%clk 0:00:15]} 54. Be7 {[%clk 0:00:17]}  Be4 {[%clk 0:00:13]} 55. Bf8 {[%clk 0:00:17]} 1/2-1/2


[Site "https://www.chess.com"]

[Event "Titled Tuesday Blitz August 23 Early 2022"]
[White "Bilan, Danila"]
[Black "Kosteniuk, Alexandra"]
[WhiteFideId "24161918"]
[BlackFideId "4128125"]
[WhiteElo "2164"]
[BlackElo "2469"]
[Result "1/2-1/2"]
[Round "07"]
[TimeControl "180+1"]
[Date "2022.08.23"]
[WhiteClock "0:00:33"]
[BlackClock "0:01:09"]

1. d4 {[%clk 0:02:59]}  f5 {[%clk 0:02:58]} 2. Nf3 {[%clk 0:02:56]}  Nf6 {[%clk 0:02:58]} 3. g3 {[%clk 0:02:56]}  g6 {[%clk 0:02:59]} 4. Bg2 {[%clk 0:02:55]}  Bg7 {[%clk 0:03:00]} 5. O-O {[%clk 0:02:56]}  O-O {[%clk 0:03:00]} 6. c4 {[%clk 0:02:57]}  d6 {[%clk 0:03:01]} 7. Nc3 {[%clk 0:02:57]}  a5 {[%clk 0:03:01]} 8. b3 {[%clk 0:02:56]}  c5 {[%clk 0:02:59]} 9. Bb2 {[%clk 0:02:52]}  Nc6 {[%clk 0:02:51]} 10. dxc5 {[%clk 0:02:06]}  Ne4 {[%clk 0:02:44]} 11. Na4 {[%clk 0:01:36]}  Bxb2 {[%clk 0:02:36]} 12. Nxb2 {[%clk 0:01:37]}  dxc5 {[%clk 0:02:29]} 13. Qxd8 {[%clk 0:01:36]}  Rxd8 {[%clk 0:02:29]} 14. Na4 {[%clk 0:01:35]}  Rd6 {[%clk 0:02:10]} 15. Rfd1 {[%clk 0:01:17]}  Be6 {[%clk 0:02:07]} 16. Rxd6 {[%clk 0:01:10]}  exd6 {[%clk 0:02:07]} 17. Rd1 {[%clk 0:01:09]}  Rd8 {[%clk 0:02:06]} 18. h4 {[%clk 0:01:09]}  h6 {[%clk 0:02:05]} 19. Nd2 {[%clk 0:01:07]}  Nf6 {[%clk 0:01:56]} 20. Nb1 {[%clk 0:01:06]}  Kf7 {[%clk 0:01:45]} 21. Bxc6 {[%clk 0:00:55]}  bxc6 {[%clk 0:01:45]} 22. Nxc5 {[%clk 0:00:55]}  Bc8 {[%clk 0:01:46]} 23. Na4 {[%clk 0:00:52]}  Ne4 {[%clk 0:01:43]} 24. Nbc3 {[%clk 0:00:51]}  Nxc3 {[%clk 0:01:42]} 25. Nxc3 {[%clk 0:00:52]}  Ke7 {[%clk 0:01:43]} 26. f4 {[%clk 0:00:47]}  Bb7 {[%clk 0:01:39]} 27. Kf2 {[%clk 0:00:46]}  c5 {[%clk 0:01:30]} 28. Rd3 {[%clk 0:00:41]}  Bc6 {[%clk 0:01:27]} 29. Re3+ {[%clk 0:00:39]}  Kf7 {[%clk 0:01:26]} 30. a4 {[%clk 0:00:39]}  Rd7 {[%clk 0:01:16]} 31. Rd3 {[%clk 0:00:38]}  Ke6 {[%clk 0:01:10]} 32. Re3+ {[%clk 0:00:38]}  Kf7 {[%clk 0:01:10]} 33. Rd3 {[%clk 0:00:38]}  Ke6 {[%clk 0:01:10]} 34. Re3+ {[%clk 0:00:33]}  Kf7 {[%clk 0:01:09]} 1/2-1/2


[Site "https://www.chess.com"]

[Event "Titled Tuesday Blitz August 23 Early 2022"]
[White "Bluebaum, Matthias"]
[Black "Adla, Diego"]
[WhiteFideId "24651516"]
[BlackFideId "100072"]
[WhiteElo "2603"]
[BlackElo "2377"]
[Result "0-1"]
[Round "07"]
[TimeControl "180+1"]
[Date "2022.08.23"]
[WhiteClock "0:00:04"]
[BlackClock "0:00:24"]

1. d4 {[%clk 0:03:00]}  Nf6 {[%clk 0:02:59]} 2. c4 {[%clk 0:03:01]}  e6 {[%clk 0:02:59]} 3. Nc3 {[%clk 0:03:02]}  Bb4 {[%clk 0:03:00]} 4. e3 {[%clk 0:03:02]}  O-O {[%clk 0:02:58]} 5. Bd2 {[%clk 0:03:03]}  d5 {[%clk 0:02:57]} 6. Nf3 {[%clk 0:03:03]}  a6 {[%clk 0:02:54]} 7. Rc1 {[%clk 0:02:58]}  dxc4 {[%clk 0:02:52]} 8. Bxc4 {[%clk 0:02:58]}  b5 {[%clk 0:02:53]} 9. Bd3 {[%clk 0:02:57]}  Bb7 {[%clk 0:02:53]} 10. a3 {[%clk 0:02:56]}  Bxc3 {[%clk 0:02:53]} 11. Bxc3 {[%clk 0:02:57]}  Nbd7 {[%clk 0:02:53]} 12. Qc2 {[%clk 0:02:51]}  Rc8 {[%clk 0:02:48]} 13. b4 {[%clk 0:02:45]}  Re8 {[%clk 0:02:23]} 14. e4 {[%clk 0:02:32]}  e5 {[%clk 0:02:23]} 15. dxe5 {[%clk 0:02:13]}  Ng4 {[%clk 0:02:23]} 16. Rd1 {[%clk 0:02:11]}  Qe7 {[%clk 0:02:19]} 17. Be2 {[%clk 0:02:10]}  c5 {[%clk 0:02:07]} 18. Qb2 {[%clk 0:02:01]}  Bxe4 {[%clk 0:01:47]} 19. O-O {[%clk 0:01:51]}  Ngxe5 {[%clk 0:01:46]} 20. Nxe5 {[%clk 0:01:48]}  Nxe5 {[%clk 0:01:46]} 21. f4 {[%clk 0:01:46]}  Nc4 {[%clk 0:01:24]} 22. Bxc4 {[%clk 0:01:45]}  bxc4 {[%clk 0:01:25]} 23. Bxg7 {[%clk 0:01:45]}  Bd3 {[%clk 0:01:22]} 24. Rf3 {[%clk 0:01:38]}  Qe2 {[%clk 0:01:16]} 25. Rc1 {[%clk 0:01:18]}  Qxb2 {[%clk 0:01:05]} 26. Bxb2 {[%clk 0:01:19]}  f6 {[%clk 0:01:05]} 27. Bxf6 {[%clk 0:01:18]}  cxb4 {[%clk 0:01:04]} 28. axb4 {[%clk 0:01:18]}  Kf7 {[%clk 0:01:04]} 29. Be5 {[%clk 0:01:15]}  Ke6 {[%clk 0:01:03]} 30. Rh3 {[%clk 0:01:11]}  Kd5 {[%clk 0:01:01]} 31. Rh6 {[%clk 0:01:06]}  Bg6 {[%clk 0:01:01]} 32. h4 {[%clk 0:01:06]}  Re6 {[%clk 0:00:55]} 33. Kf2 {[%clk 0:00:47]}  Rg8 {[%clk 0:00:53]} 34. g4 {[%clk 0:00:35]}  Bd3 {[%clk 0:00:53]} 35. Rxe6 {[%clk 0:00:35]}  Kxe6 {[%clk 0:00:53]} 36. g5 {[%clk 0:00:35]}  Kf5 {[%clk 0:00:51]} 37. Ra1 {[%clk 0:00:34]}  Rg6 {[%clk 0:00:49]} 38. Ke3 {[%clk 0:00:33]}  Kg4 {[%clk 0:00:47]} 39. Rh1 {[%clk 0:00:32]}  Kh5 {[%clk 0:00:44]} 40. Bf6 {[%clk 0:00:29]}  Rg8 {[%clk 0:00:42]} 41. Kd4 {[%clk 0:00:29]}  Rc8 {[%clk 0:00:41]} 42. Be7 {[%clk 0:00:25]}  Rc7 {[%clk 0:00:39]} 43. Bc5 {[%clk 0:00:25]}  Rd7+ {[%clk 0:00:39]} 44. Ke5 {[%clk 0:00:26]}  c3 {[%clk 0:00:38]} 45. f5 {[%clk 0:00:24]}  c2 {[%clk 0:00:37]} 46. Rc1 {[%clk 0:00:20]}  Kxh4 {[%clk 0:00:29]} 47. Ke6 {[%clk 0:00:20]}  Rb7 {[%clk 0:00:29]} 48. Be3 {[%clk 0:00:12]}  Kg4 {[%clk 0:00:28]} 49. f6 {[%clk 0:00:12]}  Bg6 {[%clk 0:00:27]} 50. Bd2 {[%clk 0:00:12]}  Kf3 {[%clk 0:00:27]} 51. Kd6 {[%clk 0:00:12]}  Ke2 {[%clk 0:00:27]} 52. Be1 {[%clk 0:00:10]}  Kd3 {[%clk 0:00:25]} 53. Kc6 {[%clk 0:00:11]}  Rb5 {[%clk 0:00:25]} 54. Kc7 {[%clk 0:00:09]}  Rxg5 {[%clk 0:00:24]} 55. Kb6 {[%clk 0:00:08]}  Rf5 {[%clk 0:00:22]} 56. Kxa6 {[%clk 0:00:04]}  Rxf6+ {[%clk 0:00:23]} 57. Kb5 {[%clk 0:00:04]}  Rf1 {[%clk 0:00:23]} 58. Kc6 {[%clk 0:00:03]}  Rxe1 {[%clk 0:00:23]} 59. Rxe1 {[%clk 0:00:04]}  Kd2 {[%clk 0:00:24]} 0-1


[Site "https://www.chess.com"]

[Event "Titled Tuesday Blitz August 23 Early 2022"]
[White "Ceres, Dragos"]
[Black "Shirov, Alexei"]
[WhiteFideId "13905864"]
[BlackFideId "2209390"]
[WhiteElo "2150"]
[BlackElo "2678"]
[Result "1-0"]
[Round "07"]
[TimeControl "180+1"]
[Date "2022.08.23"]
[WhiteClock "0:00:17"]
[BlackClock "0:00:48"]

1. d4 {[%clk 0:02:57]}  d5 {[%clk 0:02:59]} 2. c4 {[%clk 0:02:56]}  c6 {[%clk 0:02:59]} 3. Nf3 {[%clk 0:02:55]}  Nf6 {[%clk 0:02:58]} 4. Nc3 {[%clk 0:02:55]}  e6 {[%clk 0:02:58]} 5. Bg5 {[%clk 0:02:52]}  h6 {[%clk 0:02:57]} 6. Bh4 {[%clk 0:02:47]}  dxc4 {[%clk 0:02:55]} 7. e4 {[%clk 0:02:47]}  b5 {[%clk 0:02:51]} 8. e5 {[%clk 0:02:44]}  g5 {[%clk 0:02:50]} 9. Nxg5 {[%clk 0:02:43]}  hxg5 {[%clk 0:02:50]} 10. Bxg5 {[%clk 0:02:44]}  Nbd7 {[%clk 0:02:50]} 11. g3 {[%clk 0:02:43]}  Bb7 {[%clk 0:02:50]} 12. Bg2 {[%clk 0:02:41]}  Qb6 {[%clk 0:02:49]} 13. exf6 {[%clk 0:02:39]}  O-O-O {[%clk 0:02:48]} 14. O-O {[%clk 0:02:30]}  c5 {[%clk 0:02:48]} 15. dxc5 {[%clk 0:02:12]}  Nxc5 {[%clk 0:02:46]} 16. Qe2 {[%clk 0:02:11]}  Bxg2 {[%clk 0:02:46]} 17. Kxg2 {[%clk 0:02:11]}  Bh6 {[%clk 0:02:47]} 18. h4 {[%clk 0:02:03]}  Bxg5 {[%clk 0:02:41]} 19. hxg5 {[%clk 0:02:04]}  Qc6+ {[%clk 0:02:38]} 20. f3 {[%clk 0:02:02]}  Nd3 {[%clk 0:02:30]} 21. Ne4 {[%clk 0:01:57]}  Ne5 {[%clk 0:02:18]} 22. Rad1 {[%clk 0:01:55]}  Rd3 {[%clk 0:02:17]} 23. Rxd3 {[%clk 0:01:54]}  cxd3 {[%clk 0:02:16]} 24. Qe3 {[%clk 0:01:52]}  Qc2+ {[%clk 0:02:14]} 25. Rf2 {[%clk 0:01:45]}  Qd1 {[%clk 0:02:11]} 26. Rf1 {[%clk 0:01:02]}  Qc2+ {[%clk 0:02:10]} 27. Qd2 {[%clk 0:00:56]}  Qxd2+ {[%clk 0:02:02]} 28. Nxd2 {[%clk 0:00:57]}  Kd7 {[%clk 0:02:01]} 29. Rc1 {[%clk 0:00:56]}  Rh5 {[%clk 0:01:52]} 30. f4 {[%clk 0:00:53]}  Ng4 {[%clk 0:01:52]} 31. Kf3 {[%clk 0:00:53]}  Rh2 {[%clk 0:01:52]} 32. Ne4 {[%clk 0:00:47]}  Rc2 {[%clk 0:01:48]} 33. Rd1 {[%clk 0:00:45]}  Nh2+ {[%clk 0:01:44]} 34. Ke3 {[%clk 0:00:45]}  Rxb2 {[%clk 0:01:41]} 35. Rxd3+ {[%clk 0:00:45]}  Ke8 {[%clk 0:01:40]} 36. Nd6+ {[%clk 0:00:46]}  Kf8 {[%clk 0:01:39]} 37. Nxb5 {[%clk 0:00:39]}  Kg8 {[%clk 0:01:36]} 38. Nxa7 {[%clk 0:00:36]}  Rxa2 {[%clk 0:01:35]} 39. Nc6 {[%clk 0:00:36]}  Nf1+ {[%clk 0:01:32]} 40. Kd4 {[%clk 0:00:31]}  Rg2 {[%clk 0:01:29]} 41. Ne7+ {[%clk 0:00:31]}  Kh7 {[%clk 0:01:19]} 42. g4 {[%clk 0:00:26]}  Ng3 {[%clk 0:01:14]} 43. Ke3 {[%clk 0:00:22]}  Nf1+ {[%clk 0:01:10]} 44. Kf3 {[%clk 0:00:20]}  Rc2 {[%clk 0:01:09]} 45. Rd1 {[%clk 0:00:19]}  Rc3+ {[%clk 0:01:07]} 46. Kf2 {[%clk 0:00:18]}  Ng3 {[%clk 0:01:06]} 47. Re1 {[%clk 0:00:17]}  Rd3 {[%clk 0:01:01]} 48. Re3 {[%clk 0:00:17]}  Nh1+ {[%clk 0:00:58]} 49. Kf3 {[%clk 0:00:17]}  Rd2 {[%clk 0:00:56]} 50. Re2 {[%clk 0:00:17]}  Rd3+ {[%clk 0:00:56]} 51. Kg2 {[%clk 0:00:17]}  Ng3 {[%clk 0:00:54]} 52. Re1 {[%clk 0:00:18]}  Ra3 {[%clk 0:00:53]} 53. Nc6 {[%clk 0:00:16]}  Rc3 {[%clk 0:00:49]} 54. Ne5 {[%clk 0:00:17]}  Kg8 {[%clk 0:00:48]} 55. Nf3 {[%clk 0:00:17]} 1-0


[Site "https://www.chess.com"]

[Event "Titled Tuesday Blitz August 23 Early 2022"]
[White "Djokic, Mihailo"]
[Black "Zenin, Dmitry"]
[WhiteFideId "976440"]
[BlackFideId "4127897"]
[WhiteElo "2246"]
[BlackElo "2215"]
[Result "1-0"]
[Round "07"]
[TimeControl "180+1"]
[Date "2022.08.23"]
[WhiteClock "0:02:24"]
[BlackClock "0:02:26"]

1. e4 {[%clk 0:03:00]}  g6 {[%clk 0:02:59]} 2. d4 {[%clk 0:03:00]}  Bg7 {[%clk 0:02:59]} 3. Be3 {[%clk 0:03:00]}  d6 {[%clk 0:02:58]} 4. Nc3 {[%clk 0:03:00]}  a6 {[%clk 0:02:57]} 5. Qd2 {[%clk 0:03:00]}  b5 {[%clk 0:02:57]} 6. a4 {[%clk 0:03:00]}  b4 {[%clk 0:02:54]} 7. Nce2 {[%clk 0:03:00]}  Bb7 {[%clk 0:02:45]} 8. Ng3 {[%clk 0:03:00]}  a5 {[%clk 0:02:44]} 9. Nf3 {[%clk 0:02:59]}  Nf6 {[%clk 0:02:40]} 10. Bd3 {[%clk 0:02:55]}  h5 {[%clk 0:02:39]} 11. e5 {[%clk 0:02:52]}  Ng4 {[%clk 0:02:36]} 12. e6 {[%clk 0:02:51]}  f5 {[%clk 0:02:35]} 13. Nh4 {[%clk 0:02:47]}  Nxe3 {[%clk 0:02:28]} 14. Qxe3 {[%clk 0:02:44]}  Rh6 {[%clk 0:02:26]} 15. Qg5 {[%clk 0:02:24]} 1-0


[Site "https://www.chess.com"]

[Event "Titled Tuesday Blitz August 23 Early 2022"]
[White "Ezat, Mohamed"]
[Black "Goryachkina, Aleksandra"]
[WhiteFideId "10600906"]
[BlackFideId "4147103"]
[WhiteElo "2386"]
[BlackElo "2426"]
[Result "0-1"]
[Round "07"]
[TimeControl "180+1"]
[Date "2022.08.23"]
[WhiteClock "0:00:06"]
[BlackClock "0:00:05"]

1. d4 {[%clk 0:02:57]}  Nf6 {[%clk 0:02:58]} 2. c4 {[%clk 0:02:57]}  e6 {[%clk 0:02:58]} 3. Nf3 {[%clk 0:02:55]}  d5 {[%clk 0:02:58]} 4. Nc3 {[%clk 0:02:51]}  c5 {[%clk 0:02:55]} 5. cxd5 {[%clk 0:02:49]}  Nxd5 {[%clk 0:02:55]} 6. a3 {[%clk 0:02:39]}  Be7 {[%clk 0:02:46]} 7. e4 {[%clk 0:02:37]}  Nxc3 {[%clk 0:02:45]} 8. bxc3 {[%clk 0:02:37]}  cxd4 {[%clk 0:02:41]} 9. cxd4 {[%clk 0:02:36]}  O-O {[%clk 0:02:41]} 10. Bd3 {[%clk 0:02:36]}  b6 {[%clk 0:02:40]} 11. e5 {[%clk 0:02:35]}  Bb7 {[%clk 0:02:30]} 12. Be3 {[%clk 0:02:27]}  Nd7 {[%clk 0:02:21]} 13. h4 {[%clk 0:02:26]}  Bd5 {[%clk 0:02:00]} 14. Bxh7+ {[%clk 0:02:13]}  Kxh7 {[%clk 0:01:46]} 15. Ng5+ {[%clk 0:02:12]}  Kg8 {[%clk 0:01:17]} 16. Qh5 {[%clk 0:02:10]}  Be4 {[%clk 0:01:13]} 17. Nxe4 {[%clk 0:02:10]}  f6 {[%clk 0:01:12]} 18. Ng5 {[%clk 0:00:48]}  fxg5 {[%clk 0:01:00]} 19. hxg5 {[%clk 0:00:48]}  Rf5 {[%clk 0:00:54]} 20. g4 {[%clk 0:00:42]}  Rxg5 {[%clk 0:00:48]} 21. Bxg5 {[%clk 0:00:41]}  Bxg5 {[%clk 0:00:48]} 22. f4 {[%clk 0:00:41]}  Bxf4 {[%clk 0:00:33]} 23. Ke2 {[%clk 0:00:24]}  Nf8 {[%clk 0:00:23]} 24. Raf1 {[%clk 0:00:20]}  Qxd4 {[%clk 0:00:12]} 25. Qh8+ {[%clk 0:00:20]}  Kf7 {[%clk 0:00:12]} 26. Rxf4+ {[%clk 0:00:21]}  Qxf4 {[%clk 0:00:12]} 27. Rf1 {[%clk 0:00:21]}  Qxf1+ {[%clk 0:00:08]} 28. Kxf1 {[%clk 0:00:21]}  Rd8 {[%clk 0:00:07]} 29. Ke2 {[%clk 0:00:21]}  Rd5 {[%clk 0:00:07]} 30. Qh1 {[%clk 0:00:19]}  Rxe5+ {[%clk 0:00:06]} 31. Kd3 {[%clk 0:00:20]}  Rd5+ {[%clk 0:00:07]} 32. Kc3 {[%clk 0:00:20]}  Nd7 {[%clk 0:00:07]} 33. Qf3+ {[%clk 0:00:20]}  Ke7 {[%clk 0:00:07]} 34. Qg3 {[%clk 0:00:19]}  Ne5 {[%clk 0:00:07]} 35. Qh4+ {[%clk 0:00:17]}  Kf7 {[%clk 0:00:06]} 36. Qh5+ {[%clk 0:00:16]}  Ke7 {[%clk 0:00:07]} 37. Qh8 {[%clk 0:00:15]}  Kf7 {[%clk 0:00:06]} 38. Qa8 {[%clk 0:00:13]}  a5 {[%clk 0:00:05]} 39. Qb7+ {[%clk 0:00:13]}  Nd7 {[%clk 0:00:05]} 40. g5 {[%clk 0:00:10]}  Kg6 {[%clk 0:00:05]} 41. Kb2 {[%clk 0:00:07]}  Kxg5 {[%clk 0:00:05]} 42. Qc6 {[%clk 0:00:07]}  Kf6 {[%clk 0:00:06]} 43. Qc3+ {[%clk 0:00:07]}  Kf7 {[%clk 0:00:05]} 44. Qf3+ {[%clk 0:00:06]}  Ke7 {[%clk 0:00:06]} 45. Qg3 {[%clk 0:00:06]}  g5 {[%clk 0:00:06]} 46. Qf3 {[%clk 0:00:06]}  Nf6 {[%clk 0:00:06]} 47. Qe3 {[%clk 0:00:04]}  Nd7 {[%clk 0:00:06]} 48. Qh3 {[%clk 0:00:02]}  Rb5+ {[%clk 0:00:06]} 49. Ka2 {[%clk 0:00:01]}  Rf5 {[%clk 0:00:06]} 50. Qh7+ {[%clk 0:00:02]}  Kd6 {[%clk 0:00:06]} 51. Qh1 {[%clk 0:00:03]}  Rd5 {[%clk 0:00:04]} 52. Qd1 {[%clk 0:00:04]}  Rxd1 {[%clk 0:00:04]} 53. a4 {[%clk 0:00:04]}  Rd2+ {[%clk 0:00:04]} 54. Kb3 {[%clk 0:00:05]}  Rd5 {[%clk 0:00:04]} 55. Kc4 {[%clk 0:00:06]}  g4 {[%clk 0:00:05]} 0-1


[Site "https://www.chess.com"]

[Event "Titled Tuesday Blitz August 23 Early 2022"]
[White "Fier, Alexandr"]
[Black "Salinas Herrera, Pablo"]
[WhiteFideId "2107139"]
[BlackFideId "3407128"]
[WhiteElo "2598"]
[BlackElo "2542"]
[Result "1-0"]
[Round "07"]
[TimeControl "180+1"]
[Date "2022.08.23"]
[WhiteClock "0:00:14"]
[BlackClock "0:00:01"]

1. d4 {[%clk 0:03:00]}  d5 {[%clk 0:02:58]} 2. c4 {[%clk 0:03:00]}  e6 {[%clk 0:02:57]} 3. Nc3 {[%clk 0:03:00]}  Nf6 {[%clk 0:02:58]} 4. Nf3 {[%clk 0:03:00]}  c6 {[%clk 0:02:56]} 5. Bg5 {[%clk 0:02:59]}  Nbd7 {[%clk 0:02:57]} 6. e3 {[%clk 0:02:56]}  Qa5 {[%clk 0:02:57]} 7. Nd2 {[%clk 0:02:54]}  dxc4 {[%clk 0:02:58]} 8. Bxf6 {[%clk 0:02:54]}  Nxf6 {[%clk 0:02:58]} 9. Nxc4 {[%clk 0:02:54]}  Qc7 {[%clk 0:02:59]} 10. Be2 {[%clk 0:02:53]}  Be7 {[%clk 0:02:59]} 11. O-O {[%clk 0:02:53]}  O-O {[%clk 0:03:00]} 12. a3 {[%clk 0:02:53]}  Rd8 {[%clk 0:03:01]} 13. b4 {[%clk 0:02:53]}  Bd7 {[%clk 0:02:55]} 14. Qb3 {[%clk 0:02:52]}  Be8 {[%clk 0:02:55]} 15. Rac1 {[%clk 0:02:50]}  Rac8 {[%clk 0:02:56]} 16. Rfd1 {[%clk 0:02:50]}  Qb8 {[%clk 0:02:57]} 17. Bf3 {[%clk 0:02:47]}  Nd5 {[%clk 0:02:56]} 18. Ne4 {[%clk 0:02:46]}  b6 {[%clk 0:02:53]} 19. Ne5 {[%clk 0:02:41]}  a6 {[%clk 0:02:24]} 20. Be2 {[%clk 0:02:36]}  Qa7 {[%clk 0:02:21]} 21. Rc2 {[%clk 0:02:23]}  a5 {[%clk 0:02:20]} 22. Nd3 {[%clk 0:02:08]}  axb4 {[%clk 0:02:17]} 23. axb4 {[%clk 0:02:09]}  Ra8 {[%clk 0:02:08]} 24. Rb1 {[%clk 0:01:53]}  Rdc8 {[%clk 0:01:47]} 25. g3 {[%clk 0:01:51]}  h6 {[%clk 0:01:43]} 26. Nc3 {[%clk 0:01:48]}  Rd8 {[%clk 0:01:26]} 27. Bf3 {[%clk 0:01:45]}  Qa3 {[%clk 0:01:24]} 28. Qxa3 {[%clk 0:01:27]}  Rxa3 {[%clk 0:01:24]} 29. Nxd5 {[%clk 0:01:28]}  cxd5 {[%clk 0:01:24]} 30. Ne5 {[%clk 0:01:28]}  Rda8 {[%clk 0:01:08]} 31. Kg2 {[%clk 0:01:19]}  Ra2 {[%clk 0:01:01]} 32. Rc7 {[%clk 0:01:07]}  Bd8 {[%clk 0:00:33]} 33. Rcc1 {[%clk 0:01:07]}  Bg5 {[%clk 0:00:25]} 34. Kf1 {[%clk 0:01:01]}  Be7 {[%clk 0:00:20]} 35. Be2 {[%clk 0:00:59]}  f6 {[%clk 0:00:17]} 36. Nf3 {[%clk 0:00:56]}  Bg6 {[%clk 0:00:17]} 37. Rb3 {[%clk 0:00:53]}  Ra1 {[%clk 0:00:14]} 38. Rc3 {[%clk 0:00:43]}  Bxb4 {[%clk 0:00:13]} 39. Rc6 {[%clk 0:00:43]}  Rxc1+ {[%clk 0:00:13]} 40. Rxc1 {[%clk 0:00:43]}  Be4 {[%clk 0:00:09]} 41. Ne1 {[%clk 0:00:38]}  Ba5 {[%clk 0:00:06]} 42. Nd3 {[%clk 0:00:37]}  Ra7 {[%clk 0:00:06]} 43. Nf4 {[%clk 0:00:37]}  Bf5 {[%clk 0:00:05]} 44. g4 {[%clk 0:00:37]}  Be4 {[%clk 0:00:05]} 45. Nxe6 {[%clk 0:00:37]}  Re7 {[%clk 0:00:05]} 46. Nf4 {[%clk 0:00:36]}  Kh7 {[%clk 0:00:06]} 47. Rc8 {[%clk 0:00:36]}  f5 {[%clk 0:00:05]} 48. h4 {[%clk 0:00:35]}  fxg4 {[%clk 0:00:05]} 49. Bxg4 {[%clk 0:00:35]}  g5 {[%clk 0:00:05]} 50. hxg5 {[%clk 0:00:34]}  hxg5 {[%clk 0:00:06]} 51. Nh3 {[%clk 0:00:35]}  Kh6 {[%clk 0:00:05]} 52. Rc6+ {[%clk 0:00:35]}  Kg7 {[%clk 0:00:05]} 53. Nxg5 {[%clk 0:00:36]}  b5 {[%clk 0:00:04]} 54. Ra6 {[%clk 0:00:34]}  Bb4 {[%clk 0:00:04]} 55. Nxe4 {[%clk 0:00:34]}  dxe4 {[%clk 0:00:04]} 56. Rb6 {[%clk 0:00:34]}  Rc7 {[%clk 0:00:03]} 57. Rxb5 {[%clk 0:00:34]}  Rc1+ {[%clk 0:00:03]} 58. Kg2 {[%clk 0:00:35]}  Bd2 {[%clk 0:00:04]} 59. Re5 {[%clk 0:00:34]}  Rc2 {[%clk 0:00:05]} 60. Rxe4 {[%clk 0:00:34]}  Bc1 {[%clk 0:00:05]} 61. Bf5 {[%clk 0:00:33]}  Rb2 {[%clk 0:00:04]} 62. Kg3 {[%clk 0:00:29]}  Kf6 {[%clk 0:00:04]} 63. Bg4 {[%clk 0:00:29]}  Bd2 {[%clk 0:00:04]} 64. Re6+ {[%clk 0:00:28]}  Kf7 {[%clk 0:00:05]} 65. d5 {[%clk 0:00:28]}  Be1 {[%clk 0:00:05]} 66. Kf3 {[%clk 0:00:23]}  Rxf2+ {[%clk 0:00:05]} 67. Ke4 {[%clk 0:00:24]}  Ra2 {[%clk 0:00:06]} 68. Bh5+ {[%clk 0:00:24]}  Kg7 {[%clk 0:00:06]} 69. d6 {[%clk 0:00:23]}  Bh4 {[%clk 0:00:06]} 70. Rg6+ {[%clk 0:00:23]}  Kh7 {[%clk 0:00:06]} 71. Kf5 {[%clk 0:00:20]}  Ra5+ {[%clk 0:00:04]} 72. Kg4 {[%clk 0:00:20]}  Bd8 {[%clk 0:00:05]} 73. Re6 {[%clk 0:00:20]}  Ra4+ {[%clk 0:00:05]} 74. Kf3 {[%clk 0:00:20]}  Kg7 {[%clk 0:00:05]} 75. e4 {[%clk 0:00:19]}  Ra5 {[%clk 0:00:05]} 76. e5 {[%clk 0:00:18]}  Ra4 {[%clk 0:00:03]} 77. Rg6+ {[%clk 0:00:18]}  Kh7 {[%clk 0:00:03]} 78. e6 {[%clk 0:00:18]}  Ra7 {[%clk 0:00:03]} 79. Rg4 {[%clk 0:00:16]}  Kh6 {[%clk 0:00:03]} 80. Bf7 {[%clk 0:00:16]}  Ra1 {[%clk 0:00:01]} 81. e7 {[%clk 0:00:15]}  Rf1+ {[%clk 0:00:01]} 82. Kg2 {[%clk 0:00:14]} 1-0


[Site "https://www.chess.com"]